[Event "Turkish Cup 2022"]
[Site "Sakarya"]
[Date "2022.03.28"]
[Round "6.20"]
[White "Tahaoglu, Erkin"]
[Black "Kul, Ozdemir Efe"]
[Result "1-0"]
[ECO "B30"]
[WhiteElo "1694"]
[BlackElo "2042"]
[Annotator "NA"]
[PlyCount "113"]
[EventDate "2022.03.25"]
[EventType "swiss"]
[EventCountry "TUR"]
[SourceTitle "playchess.com"]
[Source "ChessBase"]
[SourceQuality "1"]
[TimeControl "5400+30"]

1. e4 {[%emt 0:01:00]} c5 {[%emt 0:02:00]} 2. Nf3 {[%emt 0:00:30]} Nc6 {[%emt 0:01:30]} 3. Nc3 {[%emt 0:00:30]} e5 {[%emt 0:00:30]} 4. Bc4 {[%emt 0:00:00]} g6 {[%emt 0:00:30]} 5. d3 {[%emt 0:00:00]} h6 {[%emt 0:00:00]} 6. h4 {[%emt 0:03:30]} d6 {[%emt 0:01:00]} 7. Nd2 {[%emt 0:01:30]} Bg7 {[%emt 0:03:30]} 8. Nf1 {[%emt 0:00:30]} Nge7 {[%emt 0:00:30]} 9. Ne3 {[%emt 0:00:30]} O-O {[%emt 0:01:30]} 10. h5 {[%emt 0:03:30]} g5 {[%emt 0:01:30]} 11. g4 {[%emt 0:00:30]} Be6 {[%emt 0:02:30]} 12. Ncd5 {[%emt 0:01:30]} Bxd5 {[%emt 0:09:30]} 13. Nxd5 {[%emt 0:01:30]} Nxd5 {[%emt 0:03:30]} 14. Bxd5 {[%emt 0:00:30]} Rb8 {[%emt 0:06:30]} 15. a4 {[%emt 0:05:30]} Ne7 {[%emt 0:05:30]} 16. Bb3 {[%emt 0:03:30]} d5 {[%emt 0:04:30]} 17. Qf3 {[%emt 0:05:30]} dxe4 {[%emt 0:10:30]} 18. dxe4 {[%emt 0:00:30]} Nc6 {[%emt 0:00:30]} 19. c3 {[%emt 0:02:30]} Qe7 {[%emt 0:01:30]} 20. O-O {[%emt 0:00:30]} Rbd8 {[%emt 0:01:30]} 21. Be3 {[%emt 0:01:30]} b6 {[%emt 0:01:30]} 22. Rad1 {[%emt 0:01:30]} Na5 {[%emt 0:04:30]} 23. Bd5 {[%emt 0:02:30]} c4 {[%emt 0:00:00]} 24. Qe2 {[%emt 0:06:30]} Rc8 {[%emt 0:00:00]} 25. Qc2 {[%emt 0:04:30]} Rc7 {[%emt 0:01:30]} 26. Kg2 {[%emt 0:05:30]} Rfc8 {[%emt 0:00:30]} 27. Ra1 {[%emt 0:02:30]} Bf8 {[%emt 0:00:30]} 28. f3 {[%emt 0:01:30]} Qf6 {[%emt 0:00:30]} 29. Bf2 {[%emt 0:07:30]} Bd6 {[%emt 0:02:30]} 30. Bg3 {[%emt 0:04:30]} Kg7 {[%emt 0:00:30]} 31. Kh3 {[%emt 0:01:30]} Qe7 {[%emt 0:03:30]} 32. Rae1 {[%emt 0:01:30]} Qe8 {[%emt 0:00:30]} 33. Rd1 {[%emt 0:04:30]} Bc5 {[%emt 0:01:30]} 34. Qh2 {[%emt 0:03:30]} f6 {[%emt 0:02:30]} 35. f4 {[%emt 0:01:30]} gxf4 {[%emt 0:03:30]} 36. Bxf4 {[%emt 0:00:00]} exf4 {[%emt 0:00:30]} 37. Qxf4 {[%emt 0:00:00]} Qe5 {[%emt 0:01:30]} 38. Qd2 {[%emt 0:01:30]} Qg5 {[%emt 0:05:30]} 39. Qg2 {[%emt 0:00:30]} Be7 {[%emt 0:01:03]} 40. Rf5 {[%emt 0:01:30]} Qe3+ {[%emt 0:00:40]} 41. Rf3 {[%emt 0:00:00]} Qg5 {[%emt 0:01:04]} 42. Rdf1 {[%emt 0:04:00]} Kh8 {[%emt 0:03:25]} 43. Rf5 {[%emt 0:00:30]} Qg7 {[%emt 0:01:11]} 44. e5 {[%emt 0:00:36]} Rf8 {[%emt 0:00:52]} 45. Qf3 {[%emt 0:01:24]} Bc5 {[%emt 0:03:21]} 46. exf6 {[%emt 0:02:32]} Qh7 {[%emt 0:00:53]} 47. Be4 {[%emt 0:00:47]} Qd7 {[%emt 0:04:08]} 48. Qf4 {[%emt 0:00:34]} Rf7 {[%emt 0:00:37]} 49. Qxh6+ {[%emt 0:08:18]} Rh7 {[%emt 0:00:43]} 50. Qf4 {[%emt 0:01:03]} Bf8 {[%emt 0:03:54]} 51. f7 {[%emt 0:03:39]} Qe7 {[%emt 0:02:21]} 52. Rf6 {[%emt 0:02:19]} Rc5 {[%emt 0:00:40]} 53. Bxh7 {[%emt 0:00:38]} Kxh7 {[%emt 0:00:28]} 54. g5 {[%emt 0:01:21]} Qe5 {[%emt 0:00:51]} 55. g6+ {[%emt 0:00:48]} Kh8 {[%emt 0:00:22]} 56. g7+ {[%emt 0:00:00]} Bxg7 {[%emt 0:02:04]} 57. Rh6+ {[%emt 0:00:00]} 1-0

[Event "Turkish Cup 2022"]
[Site "Sakarya"]
[Date "2022.03.28"]
[Round "6.21"]
[White "Korkmaz, Necmettin"]
[Black "Gok, Emre"]
[Result "1-0"]
[ECO "B22"]
[WhiteElo "2076"]
[BlackElo "1745"]
[Annotator "NA"]
[PlyCount "63"]
[EventDate "2022.03.25"]
[EventType "swiss"]
[EventCountry "TUR"]
[SourceTitle "playchess.com"]
[Source "ChessBase"]
[SourceQuality "1"]
[TimeControl "5400+30"]

1. e4 c5 {[%emt 0:01:00]} 2. Nf3 {[%emt 0:01:30]} e6 {[%emt 0:00:30]} 3. c3 {[%emt 0:00:30]} d5 {[%emt 0:00:30]} 4. exd5 {[%emt 0:00:30]} exd5 {[%emt 0:00:30]} 5. d4 {[%emt 0:00:30]} cxd4 {[%emt 0:00:00]} 6. Bb5+ {[%emt 0:14:30]} Nc6 {[%emt 0:00:00]} 7. Nxd4 {[%emt 0:01:30]} Bd7 {[%emt 0:00:30]} 8. O-O {[%emt 0:01:30]} Bd6 {[%emt 0:00:30]} 9. Re1+ {[%emt 0:11:30]} Nge7 {[%emt 0:00:00]} 10. Be3 {[%emt 0:02:30]} O-O {[%emt 0:00:00]} 11. Nd2 {[%emt 0:01:30]} Ng6 {[%emt 0:12:30]} 12. Bf1 {[%emt 0:05:30]} Nge5 {[%emt 0:02:30]} 13. Nb5 {[%emt 0:03:30]} Bb8 {[%emt 0:21:30]} 14. g3 {[%emt 0:12:30]} a6 {[%emt 0:03:30]} 15. Nd4 {[%emt 0:00:30]} Ng4 {[%emt 0:22:30]} 16. Nxc6 {[%emt 0:03:30]} bxc6 {[%emt 0:06:30]} 17. Bc5 {[%emt 0:00:30]} Ba7 {[%emt 0:04:30]} 18. Nb3 {[%emt 0:01:30]} Qf6 {[%emt 0:06:06]} 19. Qd4 {[%emt 0:05:30]} Qxd4 {[%emt 0:02:14]} 20. cxd4 {[%emt 0:02:30]} Bxc5 {[%emt 0:01:17]} 21. Nxc5 {[%emt 0:00:30]} Bf5 {[%emt 0:01:54]} 22. Bxa6 {[%emt 0:02:30]} Nf6 {[%emt 0:01:17]} 23. Bb7 {[%emt 0:04:30]} Rab8 {[%emt 0:00:31]} 24. b3 {[%emt 0:01:30]} Ne4 {[%emt 0:03:15]} 25. Nxe4 {[%emt 0:03:35]} Bxe4 {[%emt 0:00:55]} 26. Bxc6 {[%emt 0:00:18]} Rb4 {[%emt 0:01:26]} 27. a4 {[%emt 0:06:53]} Rxb3 {[%emt 0:02:53]} 28. a5 {[%emt 0:00:18]} Rc3 {[%emt 0:01:10]} 29. Rec1 {[%emt 0:01:34]} Rxc1+ {[%emt 0:01:07]} 30. Rxc1 {[%emt 0:00:20]} Bd3 {[%emt 0:01:19]} 31. Bb7 {[%emt 0:00:20]} h5 {[%emt 0:01:21]} 32. a6 {[%emt 0:00:07]} 1-0

[Event "Turkish Cup 2022"]
[Site "Sakarya"]
[Date "2022.03.28"]
[Round "6.22"]
[White "Gulsoy, Mustafa Alpago"]
[Black "Sezis, Doruk"]
[Result "1-0"]
[ECO "B22"]
[WhiteElo "2023"]
[BlackElo "1566"]
[Annotator "NA"]
[PlyCount "89"]
[EventDate "2022.03.25"]
[EventType "swiss"]
[EventCountry "TUR"]
[SourceTitle "playchess.com"]
[Source "ChessBase"]
[SourceQuality "1"]
[TimeControl "5400+30"]

1. e4 c5 2. c3 {[%emt 0:01:30]} d5 {[%emt 0:01:30]} 3. exd5 {[%emt 0:00:30]} Nf6 {[%emt 0:00:30]} 4. Nf3 {[%emt 0:00:30]} Nxd5 {[%emt 0:00:30]} 5. d4 {[%emt 0:00:30]} cxd4 {[%emt 0:00:30]} 6. Nxd4 {[%emt 0:00:30]} e6 {[%emt 0:00:00]} 7. Be2 {[%emt 0:01:30]} Bd6 {[%emt 0:00:00]} 8. Nb5 {[%emt 0:08:30]} O-O {[%emt 0:14:30]} 9. Nxd6 {[%emt 0:00:30]} Qxd6 {[%emt 0:02:30]} 10. c4 {[%emt 0:07:30]} Qb4+ {[%emt 0:00:30]} 11. Qd2 {[%emt 0:00:30]} Qxd2+ {[%emt 0:00:30]} 12. Bxd2 {[%emt 0:00:30]} Nf6 {[%emt 0:00:00]} 13. Nc3 {[%emt 0:01:30]} Bd7 {[%emt 0:01:00]} 14. O-O-O {[%emt 0:03:30]} Bc6 {[%emt 0:00:30]} 15. f3 {[%emt 0:00:30]} Nbd7 {[%emt 0:01:30]} 16. Be3 {[%emt 0:00:30]} Rac8 {[%emt 0:09:30]} 17. Rd6 {[%emt 0:01:30]} Ne8 {[%emt 0:01:30]} 18. Rd2 {[%emt 0:05:30]} f5 {[%emt 0:01:30]} 19. Rhd1 {[%emt 0:01:30]} Nef6 {[%emt 0:00:30]} 20. b4 {[%emt 0:03:30]} a6 {[%emt 0:00:30]} 21. Kb2 {[%emt 0:01:30]} Ne5 {[%emt 0:02:30]} 22. Rd6 {[%emt 0:03:30]} Rfe8 {[%emt 0:06:30]} 23. a4 {[%emt 0:01:30]} b5 {[%emt 0:12:30]} 24. cxb5 {[%emt 0:04:30]} axb5 {[%emt 0:00:30]} 25. Bd4 {[%emt 0:00:30]} Nc4+ {[%emt 0:11:30]} 26. Bxc4 {[%emt 0:04:30]} bxc4 {[%emt 0:00:30]} 27. b5 {[%emt 0:00:30]} Bd5 {[%emt 0:00:30]} 28. a5 {[%emt 0:00:30]} Kf7 {[%emt 0:00:30]} 29. Bxf6 {[%emt 0:04:30]} gxf6 {[%emt 0:00:30]} 30. Rd7+ {[%emt 0:00:30]} Kg6 {[%emt 0:00:00]} 31. a6 {[%emt 0:01:30]} f4 {[%emt 0:02:00]} 32. b6 {[%emt 0:01:30]} Rc6 {[%emt 0:00:30]} 33. Rb7 {[%emt 0:01:30]} Rc5 {[%emt 0:01:30]} 34. Rc7 {[%emt 0:01:30]} Rxc7 {[%emt 0:08:30]} 35. bxc7 {[%emt 0:00:30]} Rc8 {[%emt 0:00:00]} 36. Rxd5 {[%emt 0:00:30]} exd5 {[%emt 0:00:00]} 37. Nxd5 {[%emt 0:00:30]} c3+ {[%emt 0:00:30]} 38. Kc2 {[%emt 0:00:00]} Kf7 {[%emt 0:00:00]} 39. a7 {[%emt 0:00:00]} Ra8 {[%emt 0:00:00]} 40. Nb6 {[%emt 0:00:30]} Rxa7 {[%emt 0:00:00]} 41. c8=Q {[%emt 0:00:00]} Ra2+ {[%emt 0:00:00]} 42. Kxc3 {[%emt 0:00:00]} Rxg2 {[%emt 0:00:00]} 43. Qh3 {[%emt 0:00:00]} Rg7 {[%emt 0:00:00]} 44. Nd5 {[%emt 0:00:00]} Rg5 {[%emt 0:00:30]} 45. Qd7+ {[%emt 0:00:30]} 1-0

[Event "Turkish Cup 2022"]
[Site "Sakarya"]
[Date "2022.03.28"]
[Round "6.23"]
[White "Topuz, Mirac Melih"]
[Black "Maruflu, Enes Yusuf"]
[Result "0-1"]
[ECO "D02"]
[WhiteElo "1515"]
[BlackElo "1945"]
[Annotator "NA"]
[PlyCount "60"]
[EventDate "2022.03.25"]
[EventType "swiss"]
[EventCountry "TUR"]
[SourceTitle "playchess.com"]
[Source "ChessBase"]
[SourceQuality "1"]
[TimeControl "5400+30"]

1. d4 d5 {[%emt 0:01:00]} 2. Bf4 {[%emt 0:02:30]} Nf6 {[%emt 0:00:30]} 3. e3 {[%emt 0:00:30]} c5 {[%emt 0:00:30]} 4. c3 {[%emt 0:00:30]} Nc6 {[%emt 0:00:30]} 5. Nf3 {[%emt 0:00:30]} Qb6 {[%emt 0:00:30]} 6. Qb3 {[%emt 0:00:30]} c4 {[%emt 0:00:30]} 7. Qxb6 {[%emt 0:02:30]} axb6 {[%emt 0:00:00]} 8. Nbd2 {[%emt 0:00:30]} b5 {[%emt 0:00:00]} 9. Ne5 {[%emt 0:01:30]} b4 {[%emt 0:05:30]} 10. Nxc6 {[%emt 0:04:30]} bxc6 {[%emt 0:02:30]} 11. cxb4 {[%emt 0:02:30]} e6 {[%emt 0:00:30]} 12. e4 {[%emt 0:06:30]} Bxb4 {[%emt 0:00:00]} 13. e5 {[%emt 0:03:30]} Nd7 {[%emt 0:02:00]} 14. Be3 {[%emt 0:02:30]} O-O {[%emt 0:05:30]} 15. Be2 {[%emt 0:01:30]} c5 {[%emt 0:08:30]} 16. dxc5 {[%emt 0:12:30]} c3 {[%emt 0:00:30]} 17. bxc3 {[%emt 0:00:30]} Bxc3 {[%emt 0:00:00]} 18. Rc1 {[%emt 0:00:30]} d4 {[%emt 0:00:00]} 19. Bf4 {[%emt 0:00:30]} Rxa2 {[%emt 0:01:30]} 20. Bc4 {[%emt 0:03:30]} Rb2 {[%emt 0:01:30]} 21. Rd1 {[%emt 0:00:30]} Rb4 {[%emt 0:09:30]} 22. Bf1 {[%emt 0:12:30]} Nxc5 {[%emt 0:00:30]} 23. f3 {[%emt 0:01:30]} Rb2 {[%emt 0:02:30]} 24. Bc4 {[%emt 0:01:30]} Rc2 {[%emt 0:00:30]} 25. Bb5 {[%emt 0:06:30]} Bd7 {[%emt 0:04:30]} 26. Bxd7 {[%emt 0:00:30]} Nd3+ {[%emt 0:01:30]} 27. Kf1 {[%emt 0:00:30]} Nxf4 {[%emt 0:00:30]} 28. Nc4 {[%emt 0:02:30]} Ra8 {[%emt 0:01:30]} 29. Rb1 {[%emt 0:02:30]} h5 {[%emt 0:00:30]} 30. Bc6 {[%emt 0:00:30]} Ra1 {[%emt 0:03:30]} 0-1

[Event "Turkish Cup 2022"]
[Site "Sakarya"]
[Date "2022.03.28"]
[Round "6.24"]
[White "Akgun, Yusuf"]
[Black "Canbulan, Arda"]
[Result "0-1"]
[ECO "C58"]
[WhiteElo "1561"]
[BlackElo "1867"]
[Annotator "NA"]
[PlyCount "66"]
[EventDate "2022.03.25"]
[EventType "swiss"]
[EventCountry "TUR"]
[SourceTitle "playchess.com"]
[Source "ChessBase"]
[SourceQuality "1"]
[TimeControl "5400+30"]

1. e4 e5 2. Nf3 Nc6 3. Bc4 Nf6 {[%emt 0:01:00]} 4. Ng5 {[%emt 0:02:30]} d5 {[%emt 0:00:30]} 5. exd5 {[%emt 0:00:30]} Na5 {[%emt 0:00:30]} 6. Bb5+ {[%emt 0:00:30]} c6 {[%emt 0:00:30]} 7. dxc6 {[%emt 0:00:30]} bxc6 {[%emt 0:00:00]} 8. Ba4 {[%emt 0:00:30]} h6 {[%emt 0:03:00]} 9. Nf3 {[%emt 0:01:30]} e4 {[%emt 0:02:30]} 10. Qe2 {[%emt 0:15:30]} Be7 {[%emt 0:05:30]} 11. Ne5 {[%emt 0:04:30]} Qd5 {[%emt 0:08:30]} 12. f4 {[%emt 0:05:30]} exf3 {[%emt 0:03:30]} 13. Nxf3 {[%emt 0:01:30]} O-O {[%emt 0:00:30]} 14. Nc3 {[%emt 0:04:30]} Qh5 {[%emt 0:19:30]} 15. O-O {[%emt 0:03:30]} Re8 {[%emt 0:01:30]} 16. Qf2 {[%emt 0:04:30]} Ng4 {[%emt 0:07:30]} 17. Qg3 {[%emt 0:02:30]} Ba6 {[%emt 0:01:30]} 18. Rd1 {[%emt 0:10:30]} Rad8 {[%emt 0:04:30]} 19. h3 {[%emt 0:06:30]} Ne5 {[%emt 0:02:30]} 20. d4 {[%emt 0:06:30]} Nxf3+ {[%emt 0:05:30]} 21. Qxf3 {[%emt 0:02:30]} Qxf3 {[%emt 0:03:30]} 22. gxf3 {[%emt 0:01:30]} Rxd4 {[%emt 0:06:30]} 23. Be3 {[%emt 0:03:30]} Rxd1+ {[%emt 0:00:30]} 24. Rxd1 {[%emt 0:00:30]} Nc4 {[%emt 0:00:30]} 25. Bc1 {[%emt 0:04:05]} Bc5+ {[%emt 0:00:30]} 26. Kg2 {[%emt 0:01:48]} Re6 {[%emt 0:01:30]} 27. Ne4 {[%emt 0:02:47]} Rg6+ {[%emt 0:00:30]} 28. Kh1 {[%emt 0:01:03]} Bb6 {[%emt 0:01:30]} 29. b3 {[%emt 0:04:03]} Ne5 {[%emt 0:01:30]} 30. f4 {[%emt 0:00:47]} Be2 {[%emt 0:01:15]} 31. Re1 {[%emt 0:03:51]} Bf3+ {[%emt 0:00:30]} 32. Kh2 {[%emt 0:00:00]} Rg2+ {[%emt 0:00:17]} 33. Kh1 {[%emt 0:00:10]} Re2# {[%emt 0:00:00]} 0-1

[Event "Turkish Cup 2022"]
[Site "Sakarya"]
[Date "2022.03.28"]
[Round "6.26"]
[White "Isik, Kadri"]
[Black "Bagci, Hikmet"]
[Result "1/2-1/2"]
[ECO "E01"]
[WhiteElo "1858"]
[BlackElo "1630"]
[Annotator "NA"]
[PlyCount "129"]
[EventDate "2022.03.25"]
[EventType "swiss"]
[EventCountry "TUR"]
[SourceTitle "playchess.com"]
[Source "ChessBase"]
[SourceQuality "1"]
[TimeControl "5400+30"]

1. d4 {[%emt 0:02:00]} Nf6 {[%emt 0:01:00]} 2. c4 {[%emt 0:00:30]} e6 {[%emt 0:00:30]} 3. g3 {[%emt 0:00:30]} d5 {[%emt 0:00:30]} 4. Bg2 {[%emt 0:00:00]} c6 {[%emt 0:00:30]} 5. Nf3 {[%emt 0:00:00]} Bd6 {[%emt 0:01:30]} 6. O-O {[%emt 0:00:30]} O-O {[%emt 0:00:00]} 7. Nc3 {[%emt 0:00:30]} Nbd7 {[%emt 0:01:00]} 8. Qc2 {[%emt 0:05:30]} Re8 {[%emt 0:01:30]} 9. Rd1 {[%emt 0:01:30]} Qe7 {[%emt 0:09:30]} 10. Bg5 {[%emt 0:04:30]} h6 {[%emt 0:00:30]} 11. Bxf6 {[%emt 0:02:30]} Nxf6 {[%emt 0:00:30]} 12. e4 {[%emt 0:02:30]} dxe4 {[%emt 0:01:30]} 13. Nxe4 {[%emt 0:02:30]} Nxe4 {[%emt 0:02:30]} 14. Qxe4 {[%emt 0:00:00]} Bd7 {[%emt 0:00:30]} 15. Ne5 {[%emt 0:01:00]} Rad8 {[%emt 0:01:30]} 16. Bf1 {[%emt 0:12:30]} f5 {[%emt 0:04:30]} 17. Qe3 {[%emt 0:13:30]} Bc8 {[%emt 0:00:30]} 18. c5 {[%emt 0:03:30]} Bxe5 {[%emt 0:04:30]} 19. dxe5 {[%emt 0:00:30]} Rd5 {[%emt 0:00:30]} 20. b4 {[%emt 0:04:30]} Red8 {[%emt 0:00:30]} 21. Be2 {[%emt 0:00:30]} Qc7 {[%emt 0:01:30]} 22. Kg2 {[%emt 0:04:30]} Kh7 {[%emt 0:00:30]} 23. f4 {[%emt 0:01:30]} Qd7 {[%emt 0:01:30]} 24. Kf2 {[%emt 0:00:30]} Qe7 {[%emt 0:00:30]} 25. Bf3 {[%emt 0:01:30]} Rxd1 {[%emt 0:02:30]} 26. Rxd1 {[%emt 0:00:30]} Rxd1 {[%emt 0:01:30]} 27. Bxd1 {[%emt 0:00:00]} g6 {[%emt 0:00:00]} 28. Qd4 {[%emt 0:00:00]} Kg7 {[%emt 0:00:00]} 29. Bf3 {[%emt 0:01:30]} Qd7 {[%emt 0:01:30]} 30. Qd6 {[%emt 0:01:30]} a6 {[%emt 0:01:30]} 31. Ke3 {[%emt 0:01:30]} h5 {[%emt 0:01:30]} 32. Kd4 {[%emt 0:02:30]} Kf7 {[%emt 0:00:30]} 33. a4 {[%emt 0:00:30]} Ke8 {[%emt 0:00:30]} 34. b5 {[%emt 0:10:30]} axb5 {[%emt 0:03:30]} 35. axb5 {[%emt 0:06:09]} cxb5 {[%emt 0:01:30]} 36. c6 {[%emt 0:00:00]} Qxd6+ {[%emt 0:00:30]} 37. exd6 {[%emt 0:00:04]} bxc6 {[%emt 0:00:30]} 38. Bxc6+ {[%emt 0:00:30]} Bd7 {[%emt 0:00:30]} 39. Kc5 {[%emt 0:00:00]} b4 {[%emt 0:03:30]} 40. Bf3 {[%emt 0:01:38]} b3 {[%emt 0:00:30]} 41. Be2 {[%emt 0:00:12]} b2 {[%emt 0:00:30]} 42. Bd3 {[%emt 0:00:08]} Ba4 {[%emt 0:02:30]} 43. Kb4 {[%emt 0:03:57]} Bc6 {[%emt 0:00:00]} 44. Kc3 {[%emt 0:00:00]} Kd7 {[%emt 0:01:00]} 45. Kxb2 {[%emt 0:00:25]} Kxd6 {[%emt 0:00:00]} 46. Kc3 {[%emt 0:00:00]} e5 {[%emt 0:00:00]} 47. fxe5+ {[%emt 0:02:29]} Kxe5 {[%emt 0:00:30]} 48. Kd2 {[%emt 0:01:41]} Kd4 {[%emt 0:01:30]} 49. Ke2 {[%emt 0:03:48]} Bd5 {[%emt 0:01:30]} 50. Bb1 {[%emt 0:01:40]} Be4 {[%emt 0:01:30]} 51. Ba2 {[%emt 0:00:01]} Bd5 {[%emt 0:00:30]} 52. Bb1 {[%emt 0:00:09]} Be6 {[%emt 0:00:30]} 53. h4 {[%emt 0:03:10]} Bd5 {[%emt 0:04:30]} 54. Bc2 {[%emt 0:02:08]} Bf7 {[%emt 0:05:30]} 55. Kf3 {[%emt 0:00:23]} Ke5 {[%emt 0:01:30]} 56. Ba4 {[%emt 0:01:48]} Bd5+ {[%emt 0:01:30]} 57. Ke3 {[%emt 0:00:03]} Bf7 {[%emt 0:08:30]} 58. Bb5 {[%emt 0:00:08]} Bb3 {[%emt 0:00:30]} 59. Be8 {[%emt 0:01:44]} Kf6 {[%emt 0:00:30]} 60. Kf4 {[%emt 0:00:12]} Bf7 {[%emt 0:00:00]} 61. Bc6 {[%emt 0:00:16]} Bc4 {[%emt 0:00:00]} 62. Be8 {[%emt 0:00:07]} Be2 {[%emt 0:00:30]} 63. Bc6 {[%emt 0:00:11]} Bd3 {[%emt 0:00:30]} 64. Be8 {[%emt 0:00:30]} Be4 {[%emt 0:00:30]} 65. Bb5 {[%emt 0:00:00]} 1/2-1/2

[Event "Turkish Cup 2022"]
[Site "Sakarya"]
[Date "2022.03.28"]
[Round "6.29"]
[White "Filizci, Kivanc"]
[Black "Yasin, Hur"]
[Result "1-0"]
[ECO "B28"]
[WhiteElo "1658"]
[BlackElo "1931"]
[Annotator "NA"]
[PlyCount "93"]
[EventDate "2022.03.25"]
[EventType "swiss"]
[EventCountry "TUR"]
[SourceTitle "playchess.com"]
[Source "ChessBase"]
[SourceQuality "1"]
[TimeControl "5400+30"]

1. e4 {[%emt 0:01:00]} c5 {[%emt 0:05:00]} 2. Nf3 {[%emt 0:00:30]} a6 {[%emt 0:00:30]} 3. d4 {[%emt 0:00:30]} cxd4 {[%emt 0:00:00]} 4. Nxd4 {[%emt 0:00:30]} Nf6 {[%emt 0:00:00]} 5. Nc3 {[%emt 0:00:30]} e5 {[%emt 0:00:30]} 6. Nb3 {[%emt 0:01:30]} Bb4 {[%emt 0:00:00]} 7. Bd3 {[%emt 0:00:30]} d5 {[%emt 0:00:00]} 8. exd5 {[%emt 0:00:30]} Nxd5 {[%emt 0:00:30]} 9. Bd2 {[%emt 0:00:30]} Nxc3 {[%emt 0:00:30]} 10. Bxc3 {[%emt 0:00:30]} Bxc3+ {[%emt 0:00:30]} 11. bxc3 {[%emt 0:00:30]} Qc7 {[%emt 0:02:30]} 12. O-O {[%emt 0:06:30]} O-O {[%emt 0:01:30]} 13. Re1 {[%emt 0:05:30]} Qxc3 {[%emt 0:11:30]} 14. Qh5 {[%emt 0:28:30]} f5 {[%emt 0:01:30]} 15. Re3 {[%emt 0:03:30]} g6 {[%emt 0:03:30]} 16. Qe2 {[%emt 0:07:30]} Qc7 {[%emt 0:03:30]} 17. Rxe5 {[%emt 0:02:30]} Nc6 {[%emt 0:00:00]} 18. Re8 {[%emt 0:03:30]} Bd7 {[%emt 0:01:00]} 19. Bc4+ {[%emt 0:02:30]} Kh8 {[%emt 0:09:30]} 20. Rxa8 {[%emt 0:02:30]} Rxa8 {[%emt 0:00:30]} 21. Qd2 {[%emt 0:13:08]} Re8 {[%emt 0:02:30]} 22. Re1 {[%emt 0:03:31]} Rxe1+ {[%emt 0:03:30]} 23. Qxe1 {[%emt 0:00:09]} Kg7 {[%emt 0:02:30]} 24. Nc5 {[%emt 0:06:54]} Bc8 {[%emt 0:07:30]} 25. Ne6+ {[%emt 0:03:07]} Bxe6 {[%emt 0:00:30]} 26. Qxe6 {[%emt 0:00:05]} Qe7 {[%emt 0:04:30]} 27. Qg8+ {[%emt 0:02:21]} Kf6 {[%emt 0:01:30]} 28. g3 {[%emt 0:00:32]} Nb4 {[%emt 0:03:30]} 29. Qh8+ {[%emt 0:00:28]} Kg5 {[%emt 0:01:30]} 30. Qd4 {[%emt 0:01:42]} Kh6 {[%emt 0:02:30]} 31. Qd2+ {[%emt 0:00:47]} Kg7 {[%emt 0:01:30]} 32. Qc3+ {[%emt 0:00:18]} Kh6 {[%emt 0:00:30]} 33. Qd2+ {[%emt 0:00:03]} g5 {[%emt 0:03:30]} 34. h4 {[%emt 0:00:35]} Nc6 {[%emt 0:00:30]} 35. hxg5+ {[%emt 0:01:12]} Qxg5 {[%emt 0:00:30]} 36. Qd6+ {[%emt 0:00:00]} Qg6 {[%emt 0:06:30]} 37. Qf8+ {[%emt 0:00:18]} Kg5 {[%emt 0:00:30]} 38. f4+ {[%emt 0:00:52]} Kg4 {[%emt 0:00:30]} 39. Kg2 {[%emt 0:00:17]} Nd4 {[%emt 0:03:30]} 40. Qc5 {[%emt 0:01:02]} Qh6 {[%emt 0:03:26]} 41. Qxd4 {[%emt 0:01:46]} Qh3+ {[%emt 0:00:11]} 42. Kf2 {[%emt 0:00:12]} Qxg3+ {[%emt 0:00:46]} 43. Ke2 {[%emt 0:00:33]} Qf3+ {[%emt 0:01:05]} 44. Ke1 {[%emt 0:00:35]} Qg3+ {[%emt 0:10:52]} 45. Ke2 {[%emt 0:01:01]} Qg2+ {[%emt 0:02:57]} 46. Kd1 {[%emt 0:00:44]} Qh1+ {[%emt 0:01:05]} 47. Kd2 {[%emt 0:00:26]} 1-0

[Event "Turkish Cup 2022"]
[Site "Sakarya"]
[Date "2022.03.28"]
[Round "6.30"]
[White "Karacor, Kemal"]
[Black "Kocakaplan, Emre"]
[Result "0-1"]
[ECO "E22"]
[WhiteElo "1700"]
[BlackElo "1846"]
[Annotator "NA"]
[PlyCount "98"]
[EventDate "2022.03.25"]
[EventType "swiss"]
[EventCountry "TUR"]
[SourceTitle "playchess.com"]
[Source "ChessBase"]
[SourceQuality "1"]
[TimeControl "5400+30"]

1. d4 Nf6 2. c4 e6 3. Nc3 Bb4 4. Qb3 {[%emt 0:01:30]} Bxc3+ {[%emt 0:01:30]} 5. Qxc3 {[%emt 0:00:00]} d5 {[%emt 0:02:30]} 6. Bg5 {[%emt 0:00:00]} O-O {[%emt 0:01:30]} 7. Nf3 {[%emt 0:00:30]} Nbd7 {[%emt 0:03:30]} 8. e3 {[%emt 0:00:30]} h6 {[%emt 0:05:30]} 9. Bxf6 {[%emt 0:00:30]} Nxf6 {[%emt 0:00:30]} 10. Bd3 {[%emt 0:00:00]} dxc4 {[%emt 0:04:30]} 11. Qxc4 {[%emt 0:04:00]} c6 {[%emt 0:01:30]} 12. O-O {[%emt 0:00:30]} Qd6 {[%emt 0:10:30]} 13. h3 {[%emt 0:00:30]} Rd8 {[%emt 0:03:30]} 14. Rac1 {[%emt 0:00:30]} Bd7 {[%emt 0:02:30]} 15. Nd2 {[%emt 0:01:30]} e5 {[%emt 0:01:30]} 16. Ne4 {[%emt 0:03:30]} Nxe4 {[%emt 0:02:30]} 17. Bxe4 {[%emt 0:00:30]} Be6 {[%emt 0:01:30]} 18. Qc2 {[%emt 0:01:30]} exd4 {[%emt 0:01:30]} 19. Rfd1 {[%emt 0:00:30]} Qb4 {[%emt 0:06:30]} 20. a3 {[%emt 0:06:30]} Qb6 {[%emt 0:00:00]} 21. Rxd4 {[%emt 0:05:30]} Rxd4 {[%emt 0:00:00]} 22. exd4 {[%emt 0:00:30]} Qxd4 {[%emt 0:01:30]} 23. Rd1 {[%emt 0:05:30]} Qf6 {[%emt 0:03:30]} 24. Qc3 {[%emt 0:01:30]} Qxc3 {[%emt 0:01:30]} 25. bxc3 {[%emt 0:00:30]} Re8 {[%emt 0:00:30]} 26. Bf3 {[%emt 0:00:30]} Kf8 {[%emt 0:01:30]} 27. a4 {[%emt 0:01:30]} Ke7 {[%emt 0:01:30]} 28. Rb1 {[%emt 0:00:30]} Bc8 {[%emt 0:00:30]} 29. Re1+ {[%emt 0:11:30]} Kd8 {[%emt 0:00:30]} 30. Kf1 {[%emt 0:00:30]} Rxe1+ {[%emt 0:00:30]} 31. Kxe1 {[%emt 0:00:00]} Kc7 {[%emt 0:00:00]} 32. a5 {[%emt 0:00:00]} a6 {[%emt 0:00:00]} 33. Kd2 {[%emt 0:00:30]} Kd6 {[%emt 0:00:30]} 34. c4 {[%emt 0:02:30]} Kc5 {[%emt 0:03:30]} 35. Kc3 {[%emt 0:00:30]} b6 {[%emt 0:08:30]} 36. axb6 {[%emt 0:01:30]} Kxb6 {[%emt 0:00:00]} 37. h4 {[%emt 0:03:30]} Kc5 {[%emt 0:00:00]} 38. Bd1 {[%emt 0:00:30]} Be6 {[%emt 0:00:30]} 39. Bb3 {[%emt 0:00:30]} a5 {[%emt 0:00:30]} 40. g3 {[%emt 0:00:30]} f6 {[%emt 0:00:00]} 41. f3 {[%emt 0:01:30]} Bf7 {[%emt 0:00:00]} 42. g4 {[%emt 0:02:30]} Be6 {[%emt 0:00:00]} 43. h5 {[%emt 0:11:30]} Bf7 {[%emt 0:00:00]} 44. f4 {[%emt 0:01:30]} Be6 {[%emt 0:00:30]} 45. f5 {[%emt 0:00:30]} Bf7 {[%emt 0:00:00]} 46. Ba2 {[%emt 0:00:30]} a4 {[%emt 0:00:00]} 47. Kd3 {[%emt 0:02:30]} Kb4 {[%emt 0:00:00]} 48. Kd4 {[%emt 0:00:30]} c5+ {[%emt 0:00:00]} 49. Kd3 {[%emt 0:00:30]} Ka3 {[%emt 0:00:00]} 0-1